{"text_format":"1","workbook":"xlsx","n_sheets":5,"sheets":["Feuil1","Recap","Modèle","Rmq et NC","BOUCHARD_Gérard"],"not_rendered":{"charts":0,"images":0,"macros":1,"external_links":0,"defined_names":0,"comments":0,"pivot_tables":0},"unopened":[],"bounds":{"document_bytes":16777216,"sheet_cells":100000,"rows_first":2000,"rows_last":500,"rows_between":2000,"halvings":0,"cell_chars":16384,"cell_head_chars":4096},"cells_cut":0,"cells_raw":0,"read":"whole","date_system":"1900"}

{"sheet":"Feuil1","index":0,"n_rows":0,"n_cols":0,"rows_kept":0,"cut":false,"hidden":false,"merged":[]}

{"sheet":"Recap","index":1,"n_rows":1,"n_cols":6,"rows_kept":1,"cut":false,"hidden":false,"merged":[]}
["NOM","Prenom","Prénom NOM","Remarques ","Non conformités","Décisions"]

{"sheet":"Modèle","index":2,"n_rows":36,"n_cols":73,"rows_kept":36,"cut":false,"hidden":false,"merged":[]}
["NOM"]
["Prénom"]
[null,null,"Décision:"]
[null,null,null,null,null,null,null,null,null,null,null,null,null,null,null,null,null,null,null,null,null,null,null,null,null,null,null,null,null,null,null,null,null,null,null,null,null,null,{"$f":"#REF!","v":{"$error":"#REF!"}},{"$f":"IF(#REF!<>0,AM4&\"; \"&#REF!,AM4)","v":{"$error":"#REF!"}},{"$f":"IF(#REF!<>0,AN4&\"; \"&#REF!,AN4)","v":{"$error":"#REF!"}},{"$f":"IF(#REF!<>0,AO4&\"; \"&#REF!,AO4)","v":{"$error":"#REF!"}},{"$f":"IF(#REF!<>0,AP4&\"; \"&#REF!,AP4)","v":{"$error":"#REF!"}},{"$f":"IF(#REF!<>0,AQ4&\"; \"&#REF!,AQ4)","v":{"$error":"#REF!"}},{"$f":"IF(#REF!<>0,AR4&\"; \"&#REF!,AR4)","v":{"$error":"#REF!"}},{"$f":"IF(#REF!<>0,AS4&\"; \"&#REF!,AS4)","v":{"$error":"#REF!"}},{"$f":"IF(#REF!<>0,AT4&\"; \"&#REF!,AT4)","v":{"$error":"#REF!"}},{"$f":"IF(#REF!<>0,AU4&\"; \"&#REF!,AU4)","v":{"$error":"#REF!"}},{"$f":"IF(#REF!<>0,AV4&\"; \"&#REF!,AV4)","v":{"$error":"#REF!"}},{"$f":"IF(#REF!<>0,AW4&\"; \"&#REF!,AW4)","v":{"$error":"#REF!"}},{"$f":"IF(#REF!<>0,AX4&\"; \"&#REF!,AX4)","v":{"$error":"#REF!"}},{"$f":"IF(#REF!<>0,AY4&\"; \"&#REF!,AY4)","v":{"$error":"#REF!"}},{"$f":"IF(#REF!<>0,AZ4&\"; \"&#REF!,AZ4)","v":{"$error":"#REF!"}},{"$f":"IF(#REF!<>0,BA4&\"; \"&#REF!,BA4)","v":{"$error":"#REF!"}},{"$f":"IF(#REF!<>0,BB4&\"; \"&#REF!,BB4)","v":{"$error":"#REF!"}},{"$f":"IF(#REF!<>0,BC4&\"; \"&#REF!,BC4)","v":{"$error":"#REF!"}},{"$f":"IF(#REF!<>0,BD4&\"; \"&#REF!,BD4)","v":{"$error":"#REF!"}},{"$f":"IF(#REF!<>0,BE4&\"; \"&#REF!,BE4)","v":{"$error":"#REF!"}},{"$f":"IF(#REF!<>0,BF4&\"; \"&#REF!,BF4)","v":{"$error":"#REF!"}},{"$f":"IF(#REF!<>0,BG4&\"; \"&#REF!,BG4)","v":{"$error":"#REF!"}},{"$f":"IF(#REF!<>0,BH4&\"; \"&#REF!,BH4)","v":{"$error":"#REF!"}},{"$f":"IF(#REF!<>0,BI4&\"; \"&#REF!,BI4)","v":{"$error":"#REF!"}},{"$f":"IF(#REF!<>0,BJ4&\"; \"&#REF!,BJ4)","v":{"$error":"#REF!"}},{"$f":"IF(#REF!<>0,BK4&\"; \"&#REF!,BK4)","v":{"$error":"#REF!"}},{"$f":"IF(#REF!<>0,BL4&\"; \"&#REF!,BL4)","v":{"$error":"#REF!"}},{"$f":"IF(#REF!<>0,BM4&\"; \"&#REF!,BM4)","v":{"$error":"#REF!"}},{"$f":"IF(#REF!<>0,BN4&\"; \"&#REF!,BN4)","v":{"$error":"#REF!"}},{"$f":"IF(#REF!<>0,BO4&\"; \"&#REF!,BO4)","v":{"$error":"#REF!"}},{"$f":"IF(#REF!<>0,BP4&\"; \"&#REF!,BP4)","v":{"$error":"#REF!"}},{"$f":"IF(#REF!<>0,BQ4&\"; \"&#REF!,BQ4)","v":{"$error":"#REF!"}},{"$f":"IF(#REF!<>0,BR4&\"; \"&#REF!,BR4)","v":{"$error":"#REF!"}},{"$f":"IF(#REF!<>0,BS4&\"; \"&#REF!,BS4)","v":{"$error":"#REF!"}},{"$f":"IF(#REF!<>0,BT4&\"; \"&#REF!,BT4)","v":{"$error":"#REF!"}}]
["Thèmes",null,"Remarques","Non-conformités"]
["THEME 1"]
[null,"Données administratives"]
[]
["THEME 2"]
[null,"Méthode et détail des consommations"]
[]
["THEME 3"]
[null,"Etiquettes climat"]
[null,"Etiquettes énergie"]
[]
["THEME 4"]
[null,"Description de l'enveloppe du bati"]
[null,"Description des équipements"]
[]
["THEME 5"]
[null,"Description des équipements"]
[null,"Cohérence fiche technique et étiquettes"]
[]
["THEME 6"]
[null,"Absence injuistifée de recommandation (ou justification d'absence de recommandation erronée"]
[null,"Recommandation manifestement incomplète"]
[null,"Recommandation manifestement incomplète"]
[null,"Recommandation inadaptée"]
[null,"Recommandation inadaptée"]
[null,"Nouvelles consommations après mesure d'amélioration supérieure à l'ancienne"]
[null,"Nouvelles consommations après mesure d'amélioration supérieure à l'ancienne"]
[null,"Absence de nouvelles consommations le cas échéant"]
[null,"Absence de crédit d'impot"]
[null,"Absence de rapidité sur retour d'investissement"]
[null,"Absence effort d'investissement"]
[null,"Absence économie"]

{"sheet":"Rmq et NC","index":3,"n_rows":6,"n_cols":31,"rows_kept":6,"cut":false,"hidden":false,"merged":[]}
["Remarques NEUF","Absence d’une référence de dossier","Absence de date de visite et/ou date d'émission du rapport","Absence de report des coordonnées du propriétaire","Absence de report du type de batiment (ou type de batiment équivoque)","Absence de report des coordonnées du diagnostiqueur","Absence de report de signature du diagnostiqueur","Date de validité du rapport erronée","Date des prix erronée ","Méthode incomplète","Descriptif du logement et ou fiche technique comportant des imprécisions (sans impact manifeste sur le résultat)","Absence de report du crédit d'impot"]
["NC neuf","Absence du titre du rapport","Absence de la surface","Absence d'adresse du bien","Absence du nom du diagnostiqueur","Méthode non renseignée ou fausse","Méthode employée non explicitée","Manque une ou des consommations (ave cimpact sur le résultat)","Consommations non répartie selon les équipements","Manque les frais annuels d'énergie","Absence d'étiquette climat non justifiée","Absence d'étiquette énergie non justifiée","Consommaions énergétiques erronées (en fonction du descriptif et/ou du contexte)","Consommaions gaz à effet de serre erronées (en fonction du descriptif et/ou du contexte)","Manque les consommations","Absence de description du logement et de ses équipements","Description d'un ou des planchers manifestement incomplète","Absence manifeste de description d'une paroi du logement  ","Description du ou des équipements erroné","Absence de description d'au moins un équipement","Recommandation inadaptée (cf guide des recommandations du ministère du logement)","Recommandation incomplète (cf guide des recommandations du ministère du logement)","Pertinence de la recommandation non vérifiable en l'absence de description du logement et de ses équipements"]
["Remarques Facture","Absence d’une référence de dossier","Absence de date de visite et/ou date d'émission du rapport","Absence de report des coordonnées du propriétaire","Absence de report du type de batiment","Absence de report des coordonnées du diagnostiqueur","Absence de report de signature du diagnostiqueur","Date de validité du rapport erronée","Date des prix erronée ","Méthode incomplète","Descriptif du logement et ou fiche technique comportant des imprécisions (sans impact manifeste sur le résultat)","Absence de report du crédit d'impot","Absence de récapitulatif des méthodes"]
["NC Factures","Absence du titre du rapport","Absence de la surface","Absence d'adresse du bien","Absence du nom du diagnostiqueur","Méthode non renseignée ou fausse","Manque une ou des consommations (ave cimpact sur le résultat)","Consommations non répartie selon les équipements","Manque les frais annuels d'énergie","Absence d'étiquette climat non justifiée","Absence d'étiquette énergie non justifiée","Consommaions énergétiques erronées (en fonction du descriptif et/ou du contexte)","Consommaions gaz à effet de serre erronées (en fonction du descriptif et/ou du contexte)","Manque les consommations","Absence de description du logement et de ses équipements","Description du logement incomplète","Absence de fiche technique (le cas échéant)","Renseignement de la fiche technique manifestement incomplète (ex: absence de report des surfaces des parois; ...)","Absence d'explication du résultat (écart entre consommations estimées selon la méthode conventionnelle et consommations réelles)","Recommandation inadaptée (cf guide des recommandations du ministère du logement)","Recommandation incomplète (cf guide des recommandations du ministère du logement)","Pertinence de la recommandation non vérifiable en l'absence de description du logement et de ses équipements","% crédit d’impôt erroné"]
["Remarques conventionnel","Absence d’une référence de dossier","Absence de date de visite et/ou date d'émission du rapport","Absence de report des coordonnées du propriétaire","Absence de report du type de batiment","Absence de report des coordonnées du diagnostiqueur","Absence de report de signature du diagnostiqueur","Date de validité du rapport erronée","Date des prix erronée ","Méthode incomplète","Descriptif du logement et ou fiche technique comportant des imprécisions (sans impact manifeste sur le résultat)","Absence de report du crédit d'impot","Absence de rapidité sur retour d'investissement","Absence effort d'investissement","Absence économie","Absence de récapitulatif des méthodes"]
["NC conventionnel","Absence du titre du rapport","Absence de la surface","Absence d'adresse du bien","Absence du nom du diagnostiqueur","Méthode non renseignée ou fausse","Manque une ou des consommations (ave cimpact sur le résultat)","Consommations non répartie selon les équipements","Manque les frais annuels d'énergie","Absence d'étiquette climat non justifiée","Absence d'étiquette énergie non justifiée","Consommaions énergétiques erronées (en fonction du descriptif et/ou du contexte)","Consommaions gaz à effet de serre erronées (en fonction du descriptif et/ou du contexte)","Manque les consommations","Absence de description du logement et de ses équipements","Description d'un ou des planchers manifestement incomplète","Absence manifeste de description d'une paroi du logement  ","Description du ou des équipements erroné","Absence de description d'au moins un équipement","Absence de fiche technique ","Description des locaux non chauffées erronée ou incomplète","Description d'un pont thermique à tort","Au moins un pont thermique non décrit","Renseignement de la fiche technique manifestement incomplète (ex: absence de report des surfaces des parois; ...)","Absence d'explication du résultat (écart entre consommations estimées selon la méthode conventionnelle et consommations réelles)","Recommandation inadaptée (cf guide des recommandations du ministère du logement)","Recommandation incomplète (cf guide des recommandations du ministère du logement)","Pertinence de la recommandation non vérifiable en l'absence de description du logement et de ses équipements","Nouvelles consommations après mesures d'améliorations supérieure à l'ancienne","Absence de nouvelles consommations énergétiques après mesure d'amélioration","% crédit d’impôt erroné"]

{"sheet":"BOUCHARD_Gérard","index":4,"n_rows":36,"n_cols":73,"rows_kept":36,"cut":false,"hidden":false,"merged":[]}
["NOM","BOUCHARD"]
["Prénom","Gérard"]
[null,null,"Décision:"]
[null,null,null,null,null,null,null,null,null,null,null,null,null,null,null,null,null,null,null,null,null,null,null,null,null,null,null,null,null,null,null,null,null,null,null,null,null,null,{"$f":"#REF!","v":{"$error":"#REF!"}},{"$f":"IF(#REF!<>0,AM4&\"; \"&#REF!,AM4)","v":{"$error":"#REF!"}},{"$f":"IF(#REF!<>0,AN4&\"; \"&#REF!,AN4)","v":{"$error":"#REF!"}},{"$f":"IF(#REF!<>0,AO4&\"; \"&#REF!,AO4)","v":{"$error":"#REF!"}},{"$f":"IF(#REF!<>0,AP4&\"; \"&#REF!,AP4)","v":{"$error":"#REF!"}},{"$f":"IF(#REF!<>0,AQ4&\"; \"&#REF!,AQ4)","v":{"$error":"#REF!"}},{"$f":"IF(#REF!<>0,AR4&\"; \"&#REF!,AR4)","v":{"$error":"#REF!"}},{"$f":"IF(#REF!<>0,AS4&\"; \"&#REF!,AS4)","v":{"$error":"#REF!"}},{"$f":"IF(#REF!<>0,AT4&\"; \"&#REF!,AT4)","v":{"$error":"#REF!"}},{"$f":"IF(#REF!<>0,AU4&\"; \"&#REF!,AU4)","v":{"$error":"#REF!"}},{"$f":"IF(#REF!<>0,AV4&\"; \"&#REF!,AV4)","v":{"$error":"#REF!"}},{"$f":"IF(#REF!<>0,AW4&\"; \"&#REF!,AW4)","v":{"$error":"#REF!"}},{"$f":"IF(#REF!<>0,AX4&\"; \"&#REF!,AX4)","v":{"$error":"#REF!"}},{"$f":"IF(#REF!<>0,AY4&\"; \"&#REF!,AY4)","v":{"$error":"#REF!"}},{"$f":"IF(#REF!<>0,AZ4&\"; \"&#REF!,AZ4)","v":{"$error":"#REF!"}},{"$f":"IF(#REF!<>0,BA4&\"; \"&#REF!,BA4)","v":{"$error":"#REF!"}},{"$f":"IF(#REF!<>0,BB4&\"; \"&#REF!,BB4)","v":{"$error":"#REF!"}},{"$f":"IF(#REF!<>0,BC4&\"; \"&#REF!,BC4)","v":{"$error":"#REF!"}},{"$f":"IF(#REF!<>0,BD4&\"; \"&#REF!,BD4)","v":{"$error":"#REF!"}},{"$f":"IF(#REF!<>0,BE4&\"; \"&#REF!,BE4)","v":{"$error":"#REF!"}},{"$f":"IF(#REF!<>0,BF4&\"; \"&#REF!,BF4)","v":{"$error":"#REF!"}},{"$f":"IF(#REF!<>0,BG4&\"; \"&#REF!,BG4)","v":{"$error":"#REF!"}},{"$f":"IF(#REF!<>0,BH4&\"; \"&#REF!,BH4)","v":{"$error":"#REF!"}},{"$f":"IF(#REF!<>0,BI4&\"; \"&#REF!,BI4)","v":{"$error":"#REF!"}},{"$f":"IF(#REF!<>0,BJ4&\"; \"&#REF!,BJ4)","v":{"$error":"#REF!"}},{"$f":"IF(#REF!<>0,BK4&\"; \"&#REF!,BK4)","v":{"$error":"#REF!"}},{"$f":"IF(#REF!<>0,BL4&\"; \"&#REF!,BL4)","v":{"$error":"#REF!"}},{"$f":"IF(#REF!<>0,BM4&\"; \"&#REF!,BM4)","v":{"$error":"#REF!"}},{"$f":"IF(#REF!<>0,BN4&\"; \"&#REF!,BN4)","v":{"$error":"#REF!"}},{"$f":"IF(#REF!<>0,BO4&\"; \"&#REF!,BO4)","v":{"$error":"#REF!"}},{"$f":"IF(#REF!<>0,BP4&\"; \"&#REF!,BP4)","v":{"$error":"#REF!"}},{"$f":"IF(#REF!<>0,BQ4&\"; \"&#REF!,BQ4)","v":{"$error":"#REF!"}},{"$f":"IF(#REF!<>0,BR4&\"; \"&#REF!,BR4)","v":{"$error":"#REF!"}},{"$f":"IF(#REF!<>0,BS4&\"; \"&#REF!,BS4)","v":{"$error":"#REF!"}},{"$f":"IF(#REF!<>0,BT4&\"; \"&#REF!,BT4)","v":{"$error":"#REF!"}}]
["Thèmes",null,"Remarques","Non-conformités"]
["THEME 1"]
[null,"Données administratives","\nAbsence d’une référence de dossier\nAbsence de date de visite et/ou date d'émission du rapport"]
[]
["THEME 2"]
[null,"Méthode et détail des consommations"]
[]
["THEME 3"]
[null,"Etiquettes climat"]
[null,"Etiquettes énergie"]
[]
["THEME 4"]
[null,"Description de l'enveloppe du bati"]
[null,"Description des équipements"]
[]
["THEME 5"]
[null,"Description des équipements"]
[null,"Cohérence fiche technique et étiquettes"]
[]
["THEME 6"]
[null,"Absence injuistifée de recommandation (ou justification d'absence de recommandation erronée"]
[null,"Recommandation manifestement incomplète"]
[null,"Recommandation manifestement incomplète"]
[null,"Recommandation inadaptée"]
[null,"Recommandation inadaptée"]
[null,"Nouvelles consommations après mesure d'amélioration supérieure à l'ancienne"]
[null,"Nouvelles consommations après mesure d'amélioration supérieure à l'ancienne"]
[null,"Absence de nouvelles consommations le cas échéant"]
[null,"Absence de crédit d'impot"]
[null,"Absence de rapidité sur retour d'investissement"]
[null,"Absence effort d'investissement"]
[null,"Absence économie"]